bitfinex/quotes_ETHUSD_20250519
["timestamp","ask_amount","ask_price","bid_price","bid_amount"]
[1747638273903,4.83029738,2363.9,2363.8,0.24842569]
[1747638274504,4.83029738,2363.9,2363.8,10.79942569]
[1747638274900,0.05,2363.9,2363.8,10.79942569]
[1747638275536,0.05,2363.9,2363.8,26.32220204]
[1747638276094,0.05,2363.9,2363.8,1.02672569]
[1747638276632,0.05,2363.9,2363.8,10.79942569]
[1747638276820,4.28029738,2363.9,2363.8,0.24842569]
[1747638277024,5.25832712,2363.9,2363.8,10.79942569]
[1747638277336,5.59085532,2363.7,2363.6,0.03893316]
[1747638278008,4.23208768,2362.9,2362.8,0.83612636]
[1747638278206,4.23188666,2363.1,2362.8,0.83612636]
[1747638278207,4.7819857,2363.0,2362.8,11.38712636]
[1747638278625,4.78208768,2362.9,2362.8,11.38712636]
[1747638279139,5.68349129,2362.9,2362.8,0.83612636]
[1747638279638,0.55,2362.4,2362.3,18.268]
[1747638279843,4.7829834,2362.4,2362.3,28.82]
[1747638280039,4.23260426,2362.7,2362.3,28.82]
[1747638280248,4.2329834,2362.4,2362.3,28.82]
[1747638280606,4.2338795,2361.9,2361.6,18.27]
[1747638280807,4.23405876,2361.8,2361.7,10.90546682]
[1747638281419,4.78405876,2361.8,2361.7,10.90546682]
[1747638281614,4.78405876,2361.8,2361.7,0.35346682]
[1747638281821,4.78405876,2361.8,2361.7,10.90746682]
[1747638282430,5.46648539,2362.4,2361.7,10.90746682]
[1747638282431,4.2333418,2362.2,2361.7,10.90746682]
[1747638282631,0.8102,2362.7,2361.9,4.23370321]
[1747638282958,0.8102,2362.7,2361.8,8.0]
[1747638283256,4.2331038,2362.4,2361.9,4.23374949]
[1747638283752,0.8102,2362.7,2361.8,8.0]
[1747638284054,4.2330373,2362.4,2361.9,4.2337599]
[1747638284217,4.23283522,2362.5,2362.0,10.554]
[1747638284416,4.23308737,2362.4,2362.0,10.554]
[1747638284724,4.784049,2361.9,2361.8,10.555]
[1747638285161,0.90159226,2362.4,2361.8,10.555]
[1747638285310,0.55,2362.3,2361.8,10.555]
[1747638285516,4.23345337,2362.2,2361.8,10.555]
[1747638285815,0.55,2362.3,2361.9,4.23387817]
[1747638286031,4.78275049,2362.6,2362.0,0.7843]
[1747638286229,4.23294825,2362.5,2362.0,5.01794141]
[1747638286435,4.23255486,2362.7,2362.2,4.23316489]
[1747638286715,4.23263542,2362.6,2362.3,10.555]
[1747638286941,4.23276889,2362.6,2362.3,10.555]
[1747638287353,4.23262507,2362.6,2362.3,10.555]
[1747638287553,4.23209447,2362.9,2362.3,21.018]
[1747638287738,4.23219119,2362.9,2362.3,25.25102007]
[1747638288073,4.23231174,2362.8,2362.3,25.25102007]
[1747638288848,4.23231174,2362.8,2362.4,4.23297229]
[1747638289019,4.23231174,2362.8,2362.5,18.276]
[1747638289748,0.55,2363.2,2362.5,18.276]
[1747638290054,4.78262507,2362.6,2362.5,18.276]
[1747638291133,1.3592,2362.6,2362.2,10.556]
[1747638291332,4.78316259,2362.3,2362.2,10.556]
[1747638291522,4.78316259,2362.3,2361.8,18.276]
[1747638291523,4.2338795,2361.9,2361.8,18.276]
[1747638291728,0.55,2362.3,2361.8,18.276]
[1747638291919,4.78370025,2362.0,2361.9,10.556]
[1747638292679,4.78370025,2362.0,2361.8,18.276]
[1747638292680,4.7838795,2361.9,2361.8,18.276]
[1747638292840,4.7838795,2361.9,2361.8,28.832]
[1747638293235,4.2324027,2362.8,2361.8,28.832]
[1747638293236,4.23348462,2362.2,2361.8,28.832]
[1747638293432,4.78360603,2362.1,2361.8,28.832]
[1747638293635,4.23370974,2362.0,2361.8,28.832]
[1747638293937,4.2338795,2361.9,2361.8,18.276]
[1747638294141,4.7838795,2361.9,2361.8,28.833]
[1747638295937,4.7838795,2361.9,2361.8,18.276]
[1747638296180,4.7838795,2361.9,2361.8,28.833]
[1747638296946,4.23441734,2361.6,2361.5,10.558]
[1747638297144,0.55,2361.6,2361.5,10.558]
[1747638297333,0.55,2361.8,2361.5,10.558]
[1747638298436,4.78377389,2362.0,2361.6,4.23438508]
[1747638298631,0.7565,2362.5,2361.7,4.23406304]
[1747638298838,4.23368338,2362.1,2361.6,13.04185191]
[1747638299062,4.23379121,2362.0,2361.6,0.8076]
[1747638299274,4.2329834,2362.4,2361.6,5.04199577]
[1747638299449,4.23353125,2362.1,2361.7,4.23415069]
[1747638299648,0.7565,2362.5,2361.8,0.04233663]
[1747638299870,4.23343322,2362.2,2361.6,8.8076]
[1747638300034,4.23361678,2362.1,2361.6,13.04183819]
[1747638300235,0.55,2362.2,2361.8,4.23396201]
[1747638300439,1.02832485,2362.2,2361.5,10.558]
[1747638300756,0.55,2362.2,2361.7,0.8018]
[1747638301071,4.23111542,2363.5,2361.9,8.0]
[1747638301273,0.8267,2363.2,2362.1,8.0]
[1747638301446,4.23188625,2363.1,2362.2,0.79722272]
[1747638301668,4.23231044,2362.8,2362.4,4.23282807]
[1747638301868,4.23291964,2362.5,2362.2,11.0199]
[1747638302070,0.55,2362.3,2362.0,18.28]
[1747638302272,0.55,2362.3,2362.1,10.558]
[1747638302470,0.55,2362.4,2362.1,10.558]
[1747638302671,4.23290171,2362.5,2362.1,10.558]
[1747638302860,4.2317295,2363.1,2362.4,4.23281841]
[1747638302861,4.23216014,2362.9,2362.4,4.23281841]
[1747638303068,4.23182771,2363.1,2362.4,4.23280893]
[1747638303261,0.8267,2363.2,2362.5,0.7713]
[1747638303464,0.7641,2363.8,2362.8,4.2322668]
[1747638303662,4.0981927,2363.7,2363.3,4.23126714]
[1747638303994,4.23137138,2363.3,2363.2,0.7641]
[1747638304198,4.2315013,2363.3,2363.0,10.268]
[1747638304422,0.7641,2363.8,2363.0,10.268]
[1747638304570,4.23085279,2363.6,2363.1,4.23162911]
[1747638304917,50.17499974,2363.9,2363.8,12.99287635]
[1747638304918,40.08125749,2363.9,2363.8,12.99287635]
[1747638305076,18.15864695,2363.9,2363.8,85.70729735]
[1747638305282,0.05,2364.9,2364.8,4.98118741]
[1747638305484,0.05,2364.9,2364.8,43.98546734]
[1747638305805,0.05,2364.9,2364.8,43.94318741]
[1747638306285,0.05,2364.9,2364.8,44.19177558]
[1747638306474,0.05,2364.9,2364.8,44.51101026]
[1747638306983,0.05,2364.9,2364.8,52.51101026]
[1747638307512,0.05,2365.9,2365.4,5.00789103]
[1747638307713,0.05,2365.9,2365.6,4.22722585]
[1747638307981,0.05,2365.9,2365.7,22.50097198]
[1747638308133,0.40220294,2365.9,2365.7,18.274]
[1747638308289,0.40220294,2365.9,2365.8,20.632]
[1747638308684,0.40220294,2365.9,2365.7,18.274]
[1747638308926,0.40220294,2365.9,2365.8,20.624]
[1747638309131,4.62908035,2365.9,2365.7,18.274]
[1747638309340,4.62908035,2365.9,2365.8,10.262]
[1747638309537,4.22689999,2365.8,2365.7,18.274]
[1747638309736,0.40220294,2365.9,2365.7,28.536]
[1747638310126,0.05,2365.9,2365.7,28.536]
[1747638310438,4.27672552,2365.9,2365.8,10.262]
[1747638310629,4.27672552,2365.9,2365.7,18.274]
[1747638310630,4.22689999,2365.8,2365.7,18.274]
[1747638310828,5.63504927,2365.8,2365.7,18.274]
[1747638311143,0.8013,2367.4,2366.4,0.8038]
[1747638311345,4.32056775,2366.8,2366.4,0.8038]
[1747638311640,0.09529787,2366.7,2366.5,10.749]
[1747638311803,4.32068373,2366.7,2366.6,10.749]
[1747638312004,0.09529787,2366.7,2366.6,10.749]
[1747638312200,4.32059047,2366.7,2366.6,10.749]
[1747638312442,4.22547114,2366.6,2366.5,10.749]
[1747638312641,4.87213662,2366.6,2366.5,10.749]
[1747638312972,0.55,2366.4,2365.8,8.7864]
[1747638313140,4.22631195,2366.2,2365.9,10.749]
[1747638313345,4.22631195,2366.2,2365.8,0.7864]
[1747638313517,4.22637223,2366.1,2365.9,10.749]
[1747638313718,0.55,2365.9,2365.8,18.264]
[1747638313922,4.7768281,2365.9,2365.8,29.013]
[1747638314648,4.7768281,2365.9,2365.8,29.011]
[1747638316213,0.55,2366.0,2365.8,29.011]
[1747638316415,4.22626988,2366.2,2365.8,29.011]
[1747638316655,0.05,2366.9,2366.8,4.99381407]
[1747638316855,0.05,2366.9,2366.8,52.86581407]
[1747638318851,0.05,2366.9,2366.8,52.82181407]
[1747638319850,0.0487636,2366.9,2366.8,64.62169807]
[1747638320043,0.0487636,2366.9,2366.8,59.13144007]
[1747638320258,0.0487636,2366.9,2366.8,59.68144007]
[1747638320489,0.01169105,2366.9,2366.8,37.91614524]
[1747638320667,0.01169105,2366.9,2366.8,53.48999324]
[1747638320982,0.01169105,2366.9,2366.8,53.50499324]
[1747638321330,0.01169105,2366.9,2366.8,55.69066924]
[1747638321564,0.01169105,2366.9,2366.8,31.92199324]
[1747638321769,0.01169105,2366.9,2366.8,53.48299324]
[1747638321969,0.05,2367.9,2367.1,0.8323]
[1747638322145,0.05,2367.9,2367.8,4.22332967]
[1747638322341,0.05,2367.9,2367.8,52.87862967]
[1747638322555,0.05,2367.9,2367.8,52.87962967]
[1747638323264,4.27143288,2368.9,2367.8,52.87962967]
[1747638323265,0.05,2369.9,2368.2,0.55]
[1747638323474,0.05,2369.9,2369.8,4.21976538]
[1747638323640,0.05,2369.9,2369.8,44.23576538]
[1747638323839,0.05,2369.9,2369.8,44.54531912]
[1747638324458,0.05,2369.9,2369.8,40.32555374]
[1747638324678,4.26958732,2369.9,2369.8,29.29255374]
[1747638324970,5.6684879,2369.9,2369.8,17.55845576]
[1747638325533,4.22055857,2369.4,2369.2,18.245]
[1747638325775,4.22055857,2369.4,2369.3,10.738]
[1747638325979,4.77065588,2369.3,2369.2,18.245]
[1747638326184,5.66977732,2369.3,2369.2,18.245]
[1747638327086,4.22101219,2369.1,2368.5,0.32018871]
[1747638327250,4.22243364,2368.4,2368.3,10.735]
[1747638327582,4.77243364,2368.4,2368.3,11.08748178]
[1747638327781,4.22315131,2367.9,2367.8,10.735]
[1747638327946,4.77315131,2367.9,2367.8,10.735]
[1747638328149,5.57665131,2367.9,2367.8,10.735]
[1747638329193,8.97779176,2368.4,2367.8,10.735]
[1747638329194,0.7846,2368.5,2367.8,10.735]
[1747638329354,4.22253397,2368.3,2367.8,10.735]
[1747638329555,4.2224541,2368.3,2367.8,10.735]
[1747638329811,4.77231834,2368.4,2367.8,10.735]
[1747638330108,4.22286802,2368.1,2367.8,10.735]
[1747638330250,4.77272494,2368.2,2367.8,10.735]
[1747638330454,4.22296504,2368.1,2367.5,0.3088574]
[1747638330654,4.22296504,2368.1,2367.4,4.22400057]
[1747638330655,4.2232424,2367.9,2367.6,10.734]
[1747638331010,4.22386483,2367.5,2367.4,0.30996521]
[1747638331149,4.223582,2367.7,2367.4,10.734]
[1747638331353,0.55,2368.0,2367.5,0.04223754]
[1747638331609,10.929,2368.9,2367.8,4.22320283]
[1747638331773,4.22297297,2368.0,2367.9,10.734]
[1747638332388,4.22297297,2368.0,2367.4,4.53934057]
[1747638332389,4.77341615,2367.8,2367.4,0.31547261]
[1747638332589,0.55,2368.1,2367.6,4.22359612]
[1747638332892,4.2223268,2368.4,2367.5,10.734]
[1747638333056,0.05,2369.9,2369.2,0.7632]
[1747638333388,0.05,2369.9,2369.7,8.0]
[1747638333589,0.05,2369.9,2369.8,11.19319388]
[1747638333754,0.05,2369.9,2369.8,11.151]
[1747638334199,0.05,2369.9,2369.8,22.297]
[1747638334671,0.05,2369.9,2369.8,26.51676538]
[1747638334870,0.05,2369.9,2369.8,22.297]
[1747638335193,0.05,2369.9,2369.8,26.51676538]
[1747638336495,0.05,2369.9,2369.8,22.297]
[1747638337365,0.05,2369.9,2369.8,22.61820469]
[1747638337583,0.05,2369.9,2369.3,18.237]
[1747638337584,4.21976538,2369.8,2369.3,18.237]
[1747638337785,4.21994345,2369.7,2369.4,11.148]
[1747638338004,4.22029964,2369.5,2369.4,11.148]
[1747638338168,4.7698028,2369.8,2369.4,11.148]
[1747638338369,4.22024973,2369.6,2369.4,11.148]
[1747638338698,4.77047775,2369.4,2369.3,18.237]
[1747638341482,4.77047775,2369.4,2369.3,29.382]
[1747638342479,0.7922,2370.0,2369.3,29.382]
[1747638342703,4.21994682,2369.7,2369.3,29.382]
[1747638343023,4.22021048,2369.6,2369.3,29.382]
[1747638343298,0.05,2369.9,2369.3,29.382]
[1747638343608,0.55,2369.8,2369.3,29.382]
[1747638343789,4.77047775,2369.4,2369.3,18.237]
[1747638344114,4.77047775,2369.4,2369.3,29.382]
[1747638344819,5.24752553,2369.4,2369.3,18.237]
[1747638345103,6.07762553,2369.4,2369.3,18.237]
[1747638345305,4.77047775,2369.4,2369.3,18.237]
[1747638346178,4.22038056,2369.5,2369.3,18.237]
[1747638346378,4.77021985,2369.6,2369.3,18.237]
[1747638346582,0.55,2369.6,2369.3,18.237]
[1747638346789,0.1,2372.2,2369.3,18.237]
[1747638346992,0.05,2372.9,2370.8,8.7829]
[1747638347287,0.05,2372.9,2370.3,9.22271686]
[1747638347288,6.27003256,2373.5,2371.3,0.7829]
[1747638347489,1.32339986,2373.3,2371.5,8.0]
[1747638347689,1.32339986,2373.3,2372.0,12.21580281]
[1747638347900,1.32339986,2373.3,2371.8,0.7829]
[1747638347901,1.32339986,2373.3,2372.1,18.227]
[1747638348102,1.32339986,2373.3,2372.3,4.21517398]
[1747638348304,1.32339986,2373.3,2372.3,4.21517279]
[1747638348614,1.32339986,2373.3,2372.5,8.0]
[1747638348811,1.32339986,2373.3,2373.2,4.21371987]
[1747638349113,1.32339986,2373.3,2373.2,15.43571987]
[1747638349618,1.32339986,2373.3,2373.2,23.68202179]
[1747638349802,1.65869788,2373.8,2373.7,12.21283228]
[1747638350314,1.65869788,2373.8,2373.7,34.91609695]
[1747638350488,1.65869788,2373.8,2373.7,34.91209695]
[1747638350691,0.05,2374.9,2373.7,34.91209695]
[1747638350692,0.05,2374.9,2374.8,4.21088091]
[1747638351210,0.40092462,2374.9,2374.2,12.21194507]
[1747638351431,0.05,2374.9,2374.8,12.45718283]
[1747638351777,0.05,2374.9,2374.8,34.82918283]
[1747638352082,0.05,2375.9,2374.8,23.41220192]
[1747638352279,0.05,2375.9,2375.8,4.20910851]
[1747638352481,0.05,2375.9,2375.8,4.45541043]
[1747638352817,0.05,2376.9,2376.8,4.20733759]
[1747638352979,0.05,2376.9,2376.8,4.98813759]
[1747638353175,0.05,2376.9,2376.8,12.98813759]
[1747638353409,0.05,2376.9,2376.8,36.09713759]
[1747638353584,0.05,2376.9,2376.8,35.54713759]
[1747638354013,0.7897,2378.6,2377.3,4.20637813]
[1747638354319,0.7897,2378.6,2377.8,12.20556817]
[1747638354634,0.05,2378.9,2377.8,12.20556817]
[1747638354783,0.05,2378.9,2377.8,13.33686886]
[1747638354978,0.05,2378.9,2377.9,4.20539131]
[1747638355180,0.05,2378.9,2378.6,4.20397897]
[1747638355435,0.05,2378.9,2378.7,4.2038488]
[1747638355726,0.05,2378.9,2376.9,4.20710492]
[1747638355883,8.05,2378.9,2378.0,11.13]
[1747638356085,0.805,2378.8,2378.1,0.0420495]
[1747638356279,0.05,2378.9,2378.7,4.20397696]
[1747638356535,0.05,2378.9,2378.8,27.13180023]
[1747638356683,0.05,2378.9,2378.8,11.455]
[1747638356878,0.05,2378.9,2378.8,4.20380023]
[1747638357125,0.05,2378.9,2378.8,15.65880023]
[1747638357343,0.05,2378.9,2377.9,18.189]
[1747638357489,0.55,2378.7,2377.7,11.455]
[1747638357684,0.47538332,2378.6,2377.7,11.455]
[1747638358059,0.05,2378.9,2377.7,11.455]
[1747638358060,0.05,2378.9,2377.8,8.0]
[1747638358209,0.55,2378.8,2378.0,8.0]
[1747638358408,0.05,2378.9,2378.6,4.2039849]
[1747638358612,0.05,2378.9,2378.6,15.65900607]
[1747638358811,0.05,2378.9,2378.8,4.20380023]
[1747638359230,0.05,2378.9,2378.8,27.13280023]
[1747638359543,0.02398618,2380.6,2379.3,0.55]
[1747638359823,0.02398618,2380.6,2380.4,4.20090204]
[1747638360128,0.02398618,2380.6,2380.4,4.20093146]
[1747638360311,0.02398618,2380.6,2380.5,4.20079815]
[1747638360509,0.02398618,2380.6,2380.5,15.64779815]
[1747638360826,0.02398618,2380.6,2380.4,11.447]
[1747638361140,0.02398618,2380.6,2379.4,0.7654]
[1747638361326,0.02398618,2380.6,2380.1,4.20142425]
[1747638361499,0.02398618,2380.6,2380.5,4.20079815]
[1747638361699,0.02398618,2380.6,2380.5,23.96079815]
[1747638361909,0.1,2380.9,2380.8,4.20026881]
[1747638362144,0.1,2382.9,2382.8,4.19674332]
[1747638362316,0.1,2382.9,2382.8,54.05174332]
[1747638362501,0.1,2382.9,2382.8,46.03774332]
[1747638362696,0.1,2382.9,2382.8,22.37374332]
[1747638362923,0.1,2382.9,2382.8,46.33821477]
[1747638363122,0.1,2382.9,2382.8,46.02074332]
[1747638363329,0.1,2382.9,2381.9,0.782]
[1747638363598,0.7764,2382.8,2381.7,0.31401213]
[1747638363834,8.0,2382.5,2381.7,0.31401213]
[1747638364139,0.55,2381.9,2381.7,0.31401213]
[1747638364311,0.55,2381.9,2381.3,0.29540021]
[1747638364642,0.55,2381.7,2381.3,0.29540021]
[1747638364843,0.55,2381.4,2381.1,0.39388778]
[1747638365042,5.52526324,2381.2,2381.1,0.39388778]
[1747638365212,6.07778956,2381.2,2381.1,0.39388778]
[1747638365559,5.52649815,2380.5,2380.4,0.26128948]
[1747638365754,12.75132761,2380.2,2380.1,0.1]
[1747638366036,0.55,2379.4,2378.8,18.165]
[1747638366334,0.55,2379.4,2378.6,11.761]
[1747638366335,4.75309347,2379.2,2378.1,18.256]
[1747638366541,5.50369347,2379.2,2378.1,0.1]
[1747638366739,4.2041537,2378.6,2378.1,0.1]
[1747638366902,4.20446944,2378.5,2378.1,0.1]
[1747638367239,4.95546081,2378.2,2378.1,0.1]
[1747638367443,13.50546081,2378.2,2378.1,0.1]
[1747638367598,4.20631471,2377.4,2376.7,11.761]
[1747638367911,5.58112964,2377.2,2376.7,11.761]
[1747638368236,5.58112964,2377.2,2376.4,18.156]
[1747638368436,5.58112964,2377.2,2376.1,0.05]
[1747638368740,4.20839996,2376.2,2376.1,0.05]
[1747638368946,4.75804578,2376.4,2376.1,0.05]
[1747638369168,4.75839996,2376.2,2376.1,0.05]
[1747638369342,17.58709996,2376.2,2376.1,0.05]
[1747638369955,25.57709996,2376.2,2376.1,0.05]
[1747638371022,13.53509996,2376.2,2376.1,0.05]
[1747638372256,0.7767,2376.2,2376.1,0.05]
[1747638372445,0.7524,2376.8,2376.1,0.05]
[1747638372762,18.165,2378.2,2376.3,4.20813284]
[1747638372763,0.7524,2377.4,2376.3,4.20813284]
[1747638372932,0.7524,2377.4,2376.8,4.20718465]
[1747638373257,0.7524,2378.6,2376.9,30.181]
[1747638373462,4.20433046,2378.5,2376.9,30.181]
[1747638373631,0.7524,2378.6,2377.0,23.787]
[1747638373821,4.20433046,2378.5,2376.9,18.165]
[1747638374023,4.97331446,2378.0,2376.9,18.165]
[1747638374265,0.55,2377.8,2376.9,18.165]
[1747638374430,8.87168174,2377.8,2376.9,18.165]
[1747638374775,0.8016,2378.5,2377.1,4.97169234]
[1747638374919,4.2051948,2378.1,2377.3,4.20635485]
[1747638375122,0.35220294,2378.4,2377.4,11.767]
[1747638375317,0.35220294,2378.4,2377.7,4.2056088]
[1747638375588,0.35220294,2378.4,2377.8,30.18]
[1747638375861,4.20525474,2378.0,2377.8,18.165]
[1747638376159,0.35220294,2378.4,2377.6,11.767]
[1747638376616,0.35220294,2378.4,2377.2,30.177]
[1747638376617,0.35220294,2378.4,2377.7,11.767]
[1747638376817,8.55,2378.3,2377.1,0.7649]
[1747638377145,8.55,2378.3,2377.2,11.80906162]
[1747638377320,0.35220294,2378.4,2377.3,4.20645269]
[1747638377521,0.35220294,2378.4,2377.4,0.0420524]
[1747638377833,0.35220294,2378.4,2377.8,4.20552548]
[1747638378020,0.35220294,2378.4,2377.9,11.766]
[1747638378460,0.1216803,2380.9,2379.8,4.20203378]
[1747638378673,0.1216803,2380.9,2379.8,34.56503378]
[1747638378674,0.21926991,2380.8,2379.8,34.56503378]
[1747638378837,0.21926991,2380.8,2379.9,8.0]
[1747638379023,0.1,2380.9,2380.2,4.20116861]
[1747638379334,0.60806331,2380.9,2379.9,8.0]
[1747638379538,0.1,2380.9,2380.3,4.20104924]
[1747638379733,4.20026961,2380.8,2380.4,12.199]
[1747638380072,0.1,2380.9,2379.8,19.23275136]
[1747638380273,0.1,2380.9,2380.1,12.199]
[1747638380274,4.20132761,2380.2,2380.1,12.199]
[1747638380422,12.20185722,2379.9,2379.8,0.24155136]
[1747638380624,12.20185722,2379.9,2379.6,0.80542283]
[1747638380625,12.75221036,2379.7,2379.6,0.80542283]
[1747638380937,14.62481313,2379.9,2378.7,13.00442283]
[1747638380938,10.42295591,2379.9,2378.7,13.00442283]
[1747638381261,6.62481397,2379.9,2378.7,13.00442283]
[1747638381553,7.01072718,2379.9,2378.7,13.00442283]
[1747638381758,4.20380023,2378.8,2378.7,0.80542283]
[1747638381947,4.20373747,2378.9,2378.7,13.00042283]
[1747638382145,12.20205102,2379.8,2378.7,13.00042283]
[1747638382146,12.75168434,2380.0,2378.7,13.00042283]
[1747638382349,4.20309347,2379.2,2378.7,0.80542283]
[1747638382537,4.20291682,2379.3,2378.7,13.00042283]
[1747638382741,4.20380023,2378.8,2378.7,13.00042283]
[1747638383563,4.20375097,2378.9,2378.6,12.194]
[1747638383860,4.20375097,2378.9,2378.4,0.80542283]
[1747638383861,4.20433046,2378.5,2378.4,0.80542283]
[1747638384167,4.20389319,2378.8,2378.4,0.80542283]
[1747638384366,4.20398541,2378.7,2378.4,0.80542283]
[1747638384559,4.20433046,2378.5,2378.4,0.80542283]
[1747638385268,0.0216803,2381.6,2378.9,8.5996]
[1747638385571,4.19957019,2381.2,2379.1,8.0]
[1747638385741,4.19997471,2381.0,2379.3,8.0]
[1747638386062,4.20108571,2380.4,2379.5,4.20243726]
[1747638386238,8.0,2380.6,2379.4,24.616]
[1747638386439,4.20079815,2380.5,2379.1,4.20321108]
[1747638386653,4.20153223,2380.1,2379.6,0.80542283]
[1747638386966,0.52999747,2380.9,2379.6,13.24542283]
[1747638387141,4.20129193,2380.3,2379.7,12.191]
[1747638387342,4.20087049,2380.5,2379.8,4.20186749]
[1747638387560,4.20087049,2380.5,2379.9,4.20183096]
[1747638387762,0.1,2380.9,2379.9,18.915]
[1747638387939,4.20060374,2380.7,2380.0,4.2015763]
[1747638388142,0.1,2380.9,2380.5,4.2006474]
[1747638388339,0.1,2380.9,2380.8,4.20026881]
[1747638388690,0.1,2380.9,2380.7,4.20032331]
[1747638388975,0.1,2380.9,2380.8,4.20026881]
[1747638389145,0.1,2380.9,2380.6,12.191]
[1747638389345,0.1,2380.9,2378.9,18.70352739]
[1747638389546,0.1,2380.9,2380.0,24.79272137]
[1747638389747,4.20056637,2380.7,2380.1,4.20138968]
[1747638389947,4.30026561,2380.9,2380.2,0.80542283]
[1747638390147,0.95000825,2380.9,2380.2,0.80542283]
[1747638390373,4.20115111,2380.3,2380.2,0.80542283]
[1747638390873,4.2003841,2380.8,2380.2,0.80542283]
[1747638391185,4.20037814,2380.8,2380.3,12.188]
[1747638391478,4.20044524,2380.7,2380.3,12.188]
[1747638391776,4.20044524,2380.7,2380.2,0.80542283]
[1747638391777,4.20115111,2380.3,2380.2,0.80542283]
[1747638392142,4.200568,2380.7,2380.2,0.80542283]
[1747638392363,4.20062993,2380.6,2380.2,0.80542283]
[1747638392686,0.1,2380.9,2380.3,12.188]
[1747638392991,0.1,2380.9,2380.2,0.80542283]
[1747638393137,0.1,2380.9,2380.3,12.43045369]
[1747638393343,0.1,2380.9,2380.5,4.20079265]
[1747638393658,0.1,2380.9,2380.3,0.24345369]
[1747638393835,4.20097462,2380.4,2380.3,0.24345369]
[1747638394773,4.75097462,2380.4,2380.3,0.24345369]
[1747638394974,5.51717462,2380.4,2380.3,0.24345369]
[1747638395338,4.20203378,2379.8,2379.6,12.187]
[1747638395538,4.20203378,2379.8,2379.1,0.7524]
[1747638395762,4.75203378,2379.8,2379.7,0.80542283]
[1747638396018,4.75203378,2379.8,2378.7,12.187]
[1747638396019,4.20380023,2378.8,2378.7,12.187]
[1747638396594,4.20380023,2378.8,2378.2,12.187]
[1747638396795,4.20365905,2378.9,2378.2,12.187]
[1747638396796,4.20468401,2378.3,2378.2,12.187]
[1747638396998,4.20443891,2378.5,2378.2,12.187]
[1747638397206,4.20461493,2378.4,2378.2,12.187]
[1747638397508,4.20468401,2378.3,2378.2,12.187]
[1747638397667,4.20468401,2378.3,2378.1,0.1]
[1747638397864,4.20383806,2378.8,2378.3,4.20459851]
[1747638398068,4.20449448,2378.5,2378.3,12.187]
[1747638398306,0.8217,2378.9,2378.1,12.287]
[1747638398307,4.20486081,2378.2,2378.1,12.287]
[1747638398601,4.20486081,2378.2,2378.1,0.1]
[1747638399515,5.04581837,2378.2,2378.1,0.1]
[1747638399698,4.20486081,2378.2,2378.1,0.1]
[1747638399906,0.7707,2379.3,2378.1,4.30496563]
[1747638400201,4.20486081,2378.2,2378.1,0.1]
[1747638400373,4.20368303,2378.9,2378.1,0.1]
[1747638400576,0.4203683,2378.9,2378.2,12.19]
[1747638400813,4.20439717,2378.5,2378.2,12.19]
[1747638401000,4.62403905,2378.9,2378.2,12.19]
[1747638401201,4.20380023,2378.8,2378.1,12.29]
[1747638401402,4.20451835,2378.4,2378.1,12.29]
[1747638401617,4.20451835,2378.4,2378.1,12.69437408]
[1747638401818,12.174,2378.9,2378.3,4.20453057]
[1747638401977,0.7829,2379.7,2378.4,18.19304177]
[1747638402181,0.7829,2379.7,2378.8,4.20366189]
[1747638402182,4.20295359,2379.3,2378.8,4.20366189]
[1747638402481,0.346072,2379.7,2378.9,12.191]
[1747638402683,0.346072,2379.7,2378.5,12.191]
[1747638402982,6.82003256,2379.6,2378.1,0.50437408]
[1747638403304,0.68200326,2379.5,2378.2,0.8448]
[1747638403613,0.55,2379.5,2378.2,0.8448]
[1747638403917,4.20462846,2378.4,2378.2,12.191]
[1747638404091,4.20463038,2378.4,2378.2,12.191]
[1747638404417,4.20486081,2378.2,2378.1,0.1]
[1747638404716,12.262,2378.9,2378.1,0.1]
[1747638404889,12.262,2378.9,2378.2,12.192]
[1747638404890,1.64654247,2378.9,2378.2,12.192]
[1747638405080,4.20468401,2378.3,2378.1,0.1]
[1747638405278,4.20486081,2378.2,2378.1,0.1]
[1747638408098,4.20486081,2378.2,2378.1,0.34346201]
[1747638408296,0.7704,2378.8,2378.1,0.34346201]
[1747638408542,4.20475469,2378.3,2378.1,18.49746201]
[1747638408719,4.20309347,2379.2,2378.1,18.49746201]
[1747638408908,4.20381222,2378.8,2378.2,4.20478696]
[1747638409107,0.50413935,2379.2,2378.1,18.49746201]
[1747638409306,4.20486081,2378.2,2378.1,18.49746201]
[1747638409618,4.20479101,2378.3,2378.1,0.34346201]
[1747638410020,4.20486081,2378.2,2378.1,0.1]
[1747638410221,4.7533928,2379.1,2378.1,0.1]
[1747638410222,0.21934702,2380.1,2378.2,1.3379]
[1747638410422,4.19993309,2381.0,2379.7,5.04178844]
[1747638410675,4.20080558,2380.5,2379.8,34.50193932]
[1747638410954,4.73011557,2380.9,2380.2,4.20118251]
[1747638411129,0.1,2380.9,2380.4,4.20096641]
[1747638411445,0.1,2380.9,2380.5,12.146]
[1747638411744,0.1,2380.9,2380.5,16.3467695]
[1747638412038,0.1,2380.9,2380.5,12.146]
[1747638412444,0.1,2380.9,2380.5,16.34668191]
[1747638412738,0.1,2380.9,2380.5,16.34670958]
[1747638412897,0.1,2380.9,2380.6,0.24304288]
[1747638413097,4.30013894,2380.9,2380.6,0.24304288]
[1747638413345,4.20027571,2380.8,2380.6,0.24304288]
[1747638413637,0.1,2380.9,2380.7,12.146]
[1747638413847,4.20044524,2380.7,2380.6,0.24304288]
[1747638414050,0.1,2380.9,2380.6,12.38604288]
[1747638414252,0.1,2380.9,2380.6,0.24304288]
[1747638414535,4.20026881,2380.8,2380.7,12.49364586]
[1747638414699,4.20026881,2380.8,2380.7,0.35064586]
[1747638415124,5.0503184,2380.8,2380.7,0.35064586]